Cogmind - Beta 12 @@@ ROGUE MODE // 2023.12.05 @ 21:24:02 Player: Mozco Result: Destroyed by H-61 Shepherd with Heavy Assault Cannon Performance ------------- Evolutions (2) 1000 Regions Visited (8) 1600 Robots Destroyed (75) 375 Value Destroyed (1956) 1956 Prototype IDs (8) 160 Alien Tech Used (0) 0 Bonus (1141) 1141 TOTAL SCORE: 6232 Bonus ------- High Alert Combat Kills 141 Entered Garrisons 200 Used RIF Installer 500 Aligned with FarCom 300 Cogmind --------- Core Integrity 0/550 Matter 300/300 Energy 100/100 System Corruption 6% Temperature Cool (0) Movement Walking (105) Location -8/Materials Parts ------- > --- POWER (2) -------- (None) > --- PROPULSION (3) --- Improved Carbon-fiber Leg Potential Leg > --- UTILITY (4) ------ Large Storage Unit Advanced Visual Processing Unit > --- WEAPON (2) ------- Flail > --- INVENTORY (15) --- Improved Heat Sink Disposable Heat Sink Target Analyzer Light Armor Plating System Shield Heavy EM Shotgun Pulse Rifle Shock Bomb Launcher Blade Saw Peak State ------------ > --- POWER ------------ Light Ion Engine Improved Ion Engine > --- PROPULSION ------- Improved Carbon-fiber Leg Potential Leg Potential Leg > --- UTILITY ---------- Improved Heat Sink Large Storage Unit Advanced Visual Processing Unit Hardlight Generator > --- WEAPON ----------- Pulse Rifle Pulse Rifle > --- INVENTORY -------- Improved Aluminum Leg Improved Carbon-fiber Leg Disposable Heat Sink Improved Targeting Computer Particle Charger System Shield Spread Laser Spread Laser Field Laser Pulse Rifle Flail Blade Saw [Rating: 46] Favorites ----------- Power Heavy Ion Engine Engine Heavy Ion Engine Power Core Light Nuclear Core Propulsion Improved Carbon-fiber Leg Leg Improved Carbon-fiber Leg Wheel Wheel Utility Improved Heat Sink Device Improved Heat Sink Storage Large Storage Unit Processor Advanced Visual Processing Unit Protection Light Armor Plating Weapon Pulse Rifle Energy Gun Pulse Rifle Ballistic Gun Assault Rifle Launcher Grenade Launcher Impact Weapon Flail Slashing Weapon Blade Saw Build | -11 -10 -9 -9 -9 -8 -8 -8 -8 ------- Run | Jun Mat Mat Min Exi Min Mat Gar Mat Slots Evolved 4 | . . 2 . . . 2 . . Power 1 | . . . . . . 1 . . Propulsion 1 | . . 1 . . . . . . Utility 2 | . . 1 . . . 1 . . Weapon . | . . . . . . . . . Parts Attached 69 | 6 4 6 2 8 1 16 15 11 Power 10 | 1 . 1 . . . 5 2 1 Engine 8 | 1 . 1 . . . 5 . 1 Core 2 | . . . . . . . 2 . Reactor . | . . . . . . . . . Propulsion 15 | 2 . 1 . 2 . 4 1 5 Treads . | . . . . . . . . . Leg 13 | . . 1 . 2 . 4 1 5 Wheel 2 | 2 . . . . . . . . Hover . | . . . . . . . . . Flight . | . . . . . . . . . Utility 15 | 1 2 2 . 3 . 4 2 1 Device 10 | . 2 2 . 2 . 3 1 . Storage 2 | 1 . . . 1 . . . . Processor 2 | . . . . . . 1 1 . Hackware . | . . . . . . . . . Protection 1 | . . . . . . . . 1 Artifact . | . . . . . . . . . Weapon 29 | 2 2 2 2 3 1 3 10 4 Energy Gun 17 | . . 2 1 2 1 3 5 3 Energy Cannon . | . . . . . . . . . Ballistic Gun 3 | 2 1 . . . . . . . Ballistic Cannon . | . . . . . . . . . Launcher 5 | . 1 . 1 1 . . 2 . Special Weapon . | . . . . . . . . . Impact Weapon 3 | . . . . . . . 2 1 Slashing Weapon 1 | . . . . . . . 1 . Piercing Weapon . | . . . . . . . . . Special Melee Weapon . | . . . . . . . . . Unidentified Prototypes 6 | . . 1 . 3 . . . 2 Corrupted Parts 1 | . . . . . . . 1 . System Corruption 6 | . . . . . . . 6 . Parts Lost 22 | . . . 1 . 1 . 7 13 Power 5 | . . . . . . . 3 2 Propulsion 7 | . . . 1 . . . 1 5 Utility 4 | . . . . . . . 1 3 Weapon 6 | . . . . . 1 . 2 3 Highest Loss Streak 12 | . . . 1 . 1 . 3 12 To Critical Strikes . | . . . . . . . . . Average Slot Usage (%) 93 | . 94 96 93 92 90 97 94 84 Engine 9 | . 14 11 11 11 11 17 6 2 Core 3 | . . . . . . . 6 7 Leg 22 | . . 10 11 22 33 27 26 25 Wheel 4 | . 28 22 15 5 . . . . Device 14 | . 9 20 22 21 22 18 10 6 Storage 9 | . 14 11 11 11 11 9 9 9 Processor 9 | . . . . . . 7 16 17 Energy Gun 12 | . . 20 11 10 12 18 11 14 Ballistic Gun 1 | . 20 . . . . . . . Launcher 3 | . 7 . 11 10 . . 2 . Impact Weapon 1 | . . . . . . . 3 1 Naked Turns . | . . . . . . . . . Heaviest Build 44 | 14 16 21 21 36 36 44 43 41 Greatest Support 78 | 20 20 20 20 70 70 78 54 78 Greatest Overweight (x) 2 | . . 1 2 2 . . 1 2 Average Overweight (x) . | . . . 1 . . . . . Largest Inventory Capacity 15 | 8 8 8 8 15 15 15 15 15 Average Capacity 12 | 6 8 8 8 8 15 15 15 15 Most Carried 15 | 6 8 8 8 8 9 15 15 15 Average Carried 10 | 3 7 7 7 8 8 13 12 12 Final Capacity 15 | 8 8 8 8 15 15 15 15 15 Final Carried 15 | 6 7 8 8 8 8 15 13 9 Class Distribution -------------------- 100% | Mutant Dominant Class ---------------- Mutant | -10/Materials Mutant | -9/Materials Mutant | -9/Mines Mutant | -9/Exiles Mutant | -8/Mines Mutant | -8/Materials Mutant | -8/Garrison Mutant | -8/Materials Resources | -11 -10 -9 -9 -9 -8 -8 -8 -8 ----------- Run | Jun Mat Mat Min Exi Min Mat Gar Mat Matter Collected 1257 | 216 195 . 32 298 25 160 220 111 Remotely . | . . . . . . . . . Salvage Created 2138 | . 238 . 99 . 57 330 708 706 Parts 128 | . 22 . 8 . 13 24 36 25 Haulers Intercepted 3 | . 2 . . . . . . 1 Recyclers Shooed 2 | . . . . . . 1 . 1 Parts Field Recycled . | . . . . . . . . . Retrieved Matter . | . . . . . . . . . Parts Self-Destructed . | . . . . . . . . . Prevented . | . . . . . . . . . Kills | -11 -10 -9 -9 -9 -8 -8 -8 -8 ------- Run | Jun Mat Mat Min Exi Min Mat Gar Mat Combat Hostiles Destroyed 62 | . 8 . 9 . 7 9 19 10 Melee 3 | . . . . . . . . 3 Guns 30 | . 1 . 1 . 4 8 11 5 AOE 26 | . 7 . 8 . 3 . 7 1 Classes Destroyed 9 | . 4 . . . . 2 . 3 Worker 1 | . . . . . . . . 1 Builder 1 | . . . . . . . . 1 Hauler 3 | . 2 . . . . . . 1 Recycler 4 | . . . . . . . . 4 Operator 2 | . . . . . . 2 . . Watcher 2 | . 1 . . . . 1 . . Swarmer 27 | . 3 . 4 . 7 2 6 5 Grunt 30 | . 5 . 5 . . 4 13 3 Sentry 5 | . . . . . . 3 . 2 Best Kill Streak 9 | . 9 . 4 . 4 5 5 7 Combat Bots Only 7 | . 7 . 4 . 4 2 5 4 Max Kills in Single Turn 3 | . 3 . 3 . 3 1 2 2 Gunslinging 1 | . . . . . 1 . 1 . Exploded 3 | . 3 . 3 . 3 . 2 1 Melee 1 | . . . . . . . . 1 Uniques/NPCs Destroyed . | . . . . . . . . . Combat | -11 -10 -9 -9 -9 -8 -8 -8 -8 -------- Run | Jun Mat Mat Min Exi Min Mat Gar Mat Damage Taken 3261 | . 86 31 244 . 83 307 842 1668 Core 686 | . 18 16 48 . 22 59 80 443 Absorbed by Shields 164 | . . . . . . 120 44 . Core Remaining (%) 90 | 100 92 . . . 78 . . . Volleys Fired 173 | . 28 . 18 . 6 34 59 28 Largest 2 | . 2 . 1 . 2 2 2 2 Hottest 130 | . 40 . 65 . 130 130 128 118 Shots Fired 243 | . 39 . 18 . 8 68 72 38 Gun 203 | . 32 . 5 . 7 68 53 38 Cannon . | . . . . . . . . . Launcher 40 | . 7 . 13 . 1 . 19 . Special . | . . . . . . . . . Kinetic 32 | . 32 . . . . . . . Thermal 165 | . . . 5 . 7 68 53 32 Explosive 21 | . 7 . 13 . 1 . . . Electromagnetic 25 | . . . . . . . 19 6 Robot Hit Streak 26 | . 11 . 8 . 3 20 11 26 Robot Miss Streak 5 | . 4 . 4 . 4 5 3 3 Penetration Max . | . . . . . . . . . Secondary Targets 4 | . . . . . 1 1 2 . Max Gunslinging Chain 1 | . . . . . 1 1 1 . Shots Hit Robots 168 | . 20 . 5 . 7 52 42 42 Core Hits 135 | . 19 . 20 . 11 24 43 18 Critical Kills 2 | . 1 . . . . . . 1 Critical Parts Destroyed 1 | . . . . . . . . 1 Critical Strikes 8 | . 1 . . . . 2 2 3 Burn 5 | . . . . . . 2 2 1 Destroy 1 | . 1 . . . . . . . Smash 2 | . . . . . . . . 2 Melee Attacks 31 | . . . . . . . 7 24 Impact 29 | . . . . . . . 5 24 Slashing 2 | . . . . . . . 2 . Piercing . | . . . . . . . . . Sneak Attacks 3 | . . . . . . . . 3 Combat Hostiles . | . . . . . . . . . Follow-up Attacks . | . . . . . . . . . Damage Inflicted 5168 | . 682 . 795 . 231 882 1441 1137 Guns 2462 | . 227 . 55 . 65 882 662 571 Cannons . | . . . . . . . . . Explosions 2174 | . 455 . 740 . 162 . 779 38 Melee 509 | . . . . . . . . 509 Ramming 23 | . . . . . 4 . . 19 Kinetic 227 | . 227 . . . . . . . Thermal 2245 | . . . 55 . 65 882 759 484 Explosive 1357 | . 455 . 740 . 162 . . . Electromagnetic 807 | . . . . . . . 682 125 Impact 509 | . . . . . . . . 509 Slashing . | . . . . . . . . . Piercing . | . . . . . . . . . Highest Corruption 6 | . 1 . . . . . 6 6 Average Corruption 5 | . 1 . . . . . 6 6 Corruption Purged . | . . . . . . . . . Corruption Blocked . | . . . . . . . . . Effects 23 | . 1 . . . . . 9 13 Message Errors 8 | . . . . . . . 4 4 Matter Fused 3 | . . . . . . . 1 2 Heat Flow Errors 2 | . . . . . . . . 2 Energy Discharges 3 | . . . . . . . 1 2 Data Loss (minor) 2 | . . . . . . . 1 1 Data Loss (major) 3 | . 1 . . . . . 1 1 Misfires 1 | . . . . . . . . 1 Alerts 1 | . . . . . . . 1 . Overload Shots . | . . . . . . . . . Overflow Damage 198 | . 10 . 1 . 8 . 1 178 Projectiles . | . . . . . . . . . Explosions 20 | . 10 . 1 . 8 . 1 . Melee 178 | . . . . . . . . 178 Knockbacks 1 | . . . . . . . . 1 Impact 1 | . . . . . . . . 1 Kinetic . | . . . . . . . . . Secondary . | . . . . . . . . . Self-Inflicted Damage 179 | . 32 . 49 . 29 . 22 47 Shots 8 | . 2 . 2 . 1 . 2 1 Rammed . | . . . . . . . . . Targets Rammed 5 | . . . . . 1 . . 4 Kicked 5 | . . . . . 1 . . 4 Crushed . | . . . . . . . . . Highest Temperature 193 | . . . 12 . 42 183 144 193 Average Temperature 56 | . . . 9 . 22 64 45 59 Received Heat Transfer 1034 | . 18 9 114 . . 136 397 360 Siege Activations . | . . . . . . . . . Robots Corrupted . | . . . . . . . . . Combat Hostiles . | . . . . . . . . . Parts Fried 10 | . . . . . . . 1 9 Impact Corruptions 9 | . . . . . . . . 9 Robots Melted 2 | . . . . . . 1 1 . Combat Hostiles 2 | . . . . . . 1 1 . Parts Melted 10 | . . . . . . 4 3 3 Heat Transferred 4734 | . . . 70 . 80 2016 1506 1062 Parts Sabotaged . | . . . . . . . . . Parts Stolen . | . . . . . . . . . Parts Stripped . | . . . . . . . . . Power Chain Reactions 3 | . . . . . . . 2 1 Missiles Intercepted . | . . . . . . . . . Alert | -11 -10 -9 -9 -9 -8 -8 -8 -8 ------- Run | Jun Mat Mat Min Exi Min Mat Gar Mat Peak Influence 810 | . 331 154 323 . 222 326 810 442 Initial 394 | . . 139 60 . . 86 169 394 Average 347 | . 201 140 272 . 143 193 571 338 Maximum Alert Level 3 | . 1 . 1 . 1 1 3 2 Low Security (%) 26 | 100 43 100 16 . 90 46 2 2 Level 1 45 | . 56 . 83 . 9 53 21 86 Level 2 14 | . . . . . . . 37 11 Level 3 13 | . . . . . . . 39 . Level 4 . | . . . . . . . . . Level 5 . | . . . . . . . . . High Security . | . . . . . . . . . Max Security . | . . . . . . . . . Squads Dispatched 6 | . 2 . . . . 2 . 2 Investigation 3 | . 1 . . . . 1 . 1 Extermination . | . . . . . . . . . Reinforcement 3 | . 1 . . . . 1 . 1 Assault . | . . . . . . . . . Garrison . | . . . . . . . . . Intercept . | . . . . . . . . . Searches Triggered . | . . . . . . . . . Construction Impeded . | . . . . . . . . . Haulers Reinforced . | . . . . . . . . . Active Scanning Responses . | . . . . . . . . . Cargo Convoy Interrupts . | . . . . . . . . . Stealth | -11 -10 -9 -9 -9 -8 -8 -8 -8 --------- Run | Jun Mat Mat Min Exi Min Mat Gar Mat Distress Signals 5 | . 1 . . . . 2 . 2 Communications Jammed . | . . . . . . . . . Distress Signals . | . . . . . . . . . Times Spotted 94 | . 13 1 9 . 6 16 27 22 Peak Tracking Total 8 | . 4 1 4 . 3 5 6 8 Tactical Retreats 15 | . . . . . 1 1 8 5 Traps | -11 -10 -9 -9 -9 -8 -8 -8 -8 ------- Run | Jun Mat Mat Min Exi Min Mat Gar Mat Traps Triggered 3 | . 2 . . . . 1 . . Indirectly . | . . . . . . . . . Trap Hack Attempts . | . . . . . . . . . Triggered . | . . . . . . . . . Disarmed . | . . . . . . . . . Reprogrammed . | . . . . . . . . . Reused . | . . . . . . . . . Traps Extracted . | . . . . . . . . . Installed . | . . . . . . . . . Triggered . | . . . . . . . . . Machines | -11 -10 -9 -9 -9 -8 -8 -8 -8 ---------- Run | Jun Mat Mat Min Exi Min Mat Gar Mat Machines Disabled 3 | . 1 . 1 . . 1 . . Max in Single Turn 1 | . 1 . 1 . . 1 . . Machines Repaired . | . . . . . . . . . Machines Sabotaged . | . . . . . . . . . Overloaded Fab Kills . | . . . . . . . . . Hacking | -11 -10 -9 -9 -9 -8 -8 -8 -8 --------- Run | Jun Mat Mat Min Exi Min Mat Gar Mat Machines Accessed 17 | . 2 1 . 1 . 6 3 4 Terminals 15 | . 2 1 . . . 5 3 4 Fabricators . | . . . . . . . . . Repair Stations . | . . . . . . . . . Recycling Units . | . . . . . . . . . Scanalyzers . | . . . . . . . . . Garrison Access 1 | . . . . . . 1 . . Total Hacks 36 | . 4 4 . 1 . 12 6 9 Successful 17 | . . 1 . 1 . 8 3 4 Failed 18 | . 4 3 . . . 3 3 5 Catastrophic 2 | . . 1 . . . . 1 . Database Lockouts 1 | . . . . . . 1 . . Manual 12 | . . 4 . 1 . 4 . 3 Terminals 34 | . 4 4 . . . 11 6 9 Fabricators . | . . . . . . . . . Repair Stations . | . . . . . . . . . Recycling Units . | . . . . . . . . . Scanalyzers . | . . . . . . . . . Garrison Access 1 | . . . . . . 1 . . Terminal Hacks 14 | . . 1 . 1 . 6 3 3 Record 1 | . . . . 1 . . . . Robot Analysis 3 | . . 1 . . . 2 . . Prototype ID Bank 1 | . . . . . . 1 . . Emergency Access Points 1 | . . . . . . . 1 . Unreport Threat 1 | . . . . . . . . 1 Recall Investigation 1 | . . . . . . . . 1 Zone Layout 4 | . . . . . . 3 . 1 Patrol Navigation 1 | . . . . . . . 1 . Security Stations 1 | . . . . . . . 1 . Fabricator Hacks . | . . . . . . . . . Repair Station Hacks . | . . . . . . . . . Recycling Unit Hacks . | . . . . . . . . . Scanalyzer . | . . . . . . . . . Garrison Access Hacks 1 | . . . . . . 1 . . Unlock Access 1 | . . . . . . 1 . . Unauthorized Hacks 2 | . . . . . . 1 . 1 Terminals 2 | . . . . . . 1 . 1 Botnet 2 | . . . . . . 1 . 1 Fabricators . | . . . . . . . . . Repair Stations . | . . . . . . . . . Recycling Units . | . . . . . . . . . Scanalyzers . | . . . . . . . . . Garrison Access . | . . . . . . . . . Data Cores Recovered 1 | . . . . . . 1 . . Used . | . . . . . . . . . Hacking Detections 13 | . 2 1 . . . 4 2 4 Full Trace Events 2 | . . . . . . . 1 1 Feedback Events . | . . . . . . . . . Feedback Blocked . | . . . . . . . . . Robot Schematics Acquired . | . . . . . . . . . Robots Built . | . . . . . . . . . Authchips . | . . . . . . . . . Time . | . . . . . . . . . Total Robot Build Rating . | . . . . . . . . . Part Schematics Acquired . | . . . . . . . . . Parts Built . | . . . . . . . . . Authchips . | . . . . . . . . . Time . | . . . . . . . . . Total Part Build Rating . | . . . . . . . . . Parts Repaired . | . . . . . . . . . Time . | . . . . . . . . . Parts Recycled . | . . . . . . . . . Recycled Matter . | . . . . . . . . . Retrieved Matter . | . . . . . . . . . Retrieved Components . | . . . . . . . . . Parts Scanalyzed . | . . . . . . . . . Part Schematics Acquired . | . . . . . . . . . Parts Damaged . | . . . . . . . . . Bothacking | -11 -10 -9 -9 -9 -8 -8 -8 -8 ------------ Run | Jun Mat Mat Min Exi Min Mat Gar Mat Used RIF Installer 1 | . . . . . . . 1 . Robots Hacked . | . . . . . . . . . Non-combat . | . . . . . . . . . Combat . | . . . . . . . . . Robot Hacks Applied . | . . . . . . . . . Relay Couplers Released . | . . . . . . . . . Fabnet Peak Effective % . | . . . . . . . . . Robots Rewired . | . . . . . . . . . Allies Hacked . | . . . . . . . . . Hacks Repelled . | . . . . . . . . . Allies | -11 -10 -9 -9 -9 -8 -8 -8 -8 -------- Run | Jun Mat Mat Min Exi Min Mat Gar Mat Total Allies . | . . . . . . . . . Largest Group . | . . . . . . . . . Highest-Rated Group . | . . . . . . . . . Highest-Rated Ally . | . . . . . . . . . Total Orders . | . . . . . . . . . Ally Attacks . | . . . . . . . . . Total Damage . | . . . . . . . . . Kills . | . . . . . . . . . Allies Corrupted . | . . . . . . . . . Allies Melted . | . . . . . . . . . Intel | -11 -10 -9 -9 -9 -8 -8 -8 -8 ------- Run | Jun Mat Mat Min Exi Min Mat Gar Mat Robot Analysis Total 3 | . . 1 . . . 2 . . Derelict Logs Recovered 1 | . . . 1 . . . . . Drone Launches . | . . . . . . . . . Drone Recoveries . | . . . . . . . . . Exploration | -11 -10 -9 -9 -9 -8 -8 -8 -8 ------------- Run | Jun Mat Mat Min Exi Min Mat Gar Mat Turns Passed 3442 | 51 228 124 377 319 186 595 1071 491 Spaces Moved 2398 | 41 182 129 322 293 166 409 636 220 Core 2 | 2 . . . . . . . . Treads . | . . . . . . . . . Legs 1591 | . . . . 160 166 409 636 220 Wheels 805 | 39 182 129 322 133 . . . . Hover . | . . . . . . . . . Flight . | . . . . . . . . . Fastest Speed 50 | 50 80 80 95 90 100 100 120 100 Average Speed 111 | 78 80 85 103 103 100 104 138 129 Slowest Speed 260 | 80 80 95 110 110 100 120 190 260 Overloaded Moves . | . . . . . . . . . Propulsion Burnouts . | . . . . . . . . . Robots Hopped . | . . . . . . . . . Cave-ins Triggered . | . . . . . . . . . Exploration Rate (%) 42 | 3 40 11 68 59 52 44 74 30 Regions Visited 8 Branch Regions 3 Pre-discovered Areas 2 | . . . 1 1 . . . . Known Exits Taken 1 | . . . . . . 1 . . Unknown Exits Taken 6 | 1 1 1 1 1 1 . . . Scrap Searched 2 | . . . 1 . 1 . . . Spaces Dug 14 | . . . 14 . . . . . Terrain Destroyed 123 | . 33 . 61 . 12 . 11 6 Melee . | . . . . . . . . . Projectile . | . . . . . . . . . AOE 123 | . 33 . 61 . 12 . 11 6 Terrain Rammed . | . . . . . . . . . Walls Destroyed . | . . . . . . . . . Machines Disabled . | . . . . . . . . . Actions | -11 -10 -9 -9 -9 -8 -8 -8 -8 --------- Run | Jun Mat Mat Min Exi Min Mat Gar Mat Total 2861 | 57 224 145 349 307 178 513 736 352 Wait 117 | 4 7 . 4 . 4 20 20 58 Move 2391 | 40 181 128 321 292 165 409 635 220 Hop . | . . . . . . . . . Pick Up 36 | 7 2 5 2 . 1 15 . 4 Fast Attach 31 | 5 1 4 . 7 . 7 3 4 Attach 15 | 1 . 2 . . 1 1 3 7 Detach 1 | . . . . . . 1 . . Swap 23 | . 3 . 2 1 . 8 9 . Drop 38 | . 2 6 2 7 . 18 . 3 Fire 173 | . 28 . 18 . 6 34 59 28 Melee 31 | . . . . . . . 7 24 Ram . | . . . . . . . . . Kick 5 | . . . . . 1 . . 4 Crush . | . . . . . . . . . Escape Stasis . | . . . . . . . . . Rewire . | . . . . . . . . . Trap . | . . . . . . . . . Miscellaneous . | . . . . . . . . . Route ------- -11/Junkyard -10/Materials -9/Materials -9/Mines (discovered 2 exits: *Mat / *Exi) -9/Exiles -8/Mines -8/Materials (discovered 2 exits: [Fac] / Gar) -8/Garrison (discovered 3 exits: *Mat x3) -8/Materials History --------- Turn | Location | Event 9 | -11/Junkyard | Discovered new exit (range 15) 52 | -11/Junkyard | Entered Materials 172 | -10/Materials | Destroyed 7 combat bots 173 | -10/Materials | Discovered new exit (range 15) 280 | -10/Materials | Entered another Materials area 280 | -9/Materials | Evolved 2 slots: Propulsion x1, Utility x1 312 | -9/Materials | Discovered new exit (range 15) 323 | -9/Materials | Build established: Mutant 404 | -9/Materials | Entered Mines 431 | -9/Mines | Discovered new exit (range 8) 433 | -9/Mines | Learned location of Zion (-6) 776 | -9/Mines | Deemed a non-threat by the Exiles lab entrance 776 | -9/Mines | Discovered new exit (range 5) 781 | -9/Mines | Entered Exiles 809 | -9/Exiles | Met 8R-AWN 828 | -9/Exiles | Met EX-HEX 875 | -9/Exiles | Met EX-BIN 891 | -9/Exiles | Aligned with FarCom system 893 | -9/Exiles | Given EX-Vault access code 918 | -9/Exiles | Opened EX-Vault 923 | -9/Exiles | Found Prototype Device 923 | -9/Exiles | Identified Supersonic Drone Bay 928 | -9/Exiles | Found Prototype Energy Gun 928 | -9/Exiles | Identified AWS/Thermal 933 | -9/Exiles | Found Prototype Leg 933 | -9/Exiles | Identified Potential Leg 937 | -9/Exiles | Found Potential Leg 965 | -9/Exiles | Warned to stay clear of 0b10 Research branches 1087 | -9/Exiles | Discovered new exit (range 14) 1100 | -9/Exiles | Left Exiles lab with Potential Leg 1100 | -9/Exiles | Entered Mines 1272 | -8/Mines | Discovered new exit (range 11) 1286 | -8/Mines | Entered Materials 1286 | -8/Materials | Evolved 2 slots: Power x1, Utility x1 1857 | -8/Materials | Discovered new exit (range 17) 1857 | -8/Materials | Central database locked down 1881 | -8/Materials | Identified exit to Garrison 1881 | -8/Materials | Entered Garrison 1903 | -8/Garrison | Learned Materials security intel 1928 | -8/Garrison | Triggered checkpoint 2044 | -8/Garrison | Triggered checkpoint 2056 | -8/Garrison | Triggered checkpoint 2102 | -8/Garrison | Triggered checkpoint 2123 | -8/Garrison | Triggered checkpoint 2151 | -8/Garrison | Discovered new exit (range 5) 2254 | -8/Garrison | Triggered checkpoint 2308 | -8/Garrison | Discovered new exit (range 3) 2428 | -8/Garrison | Discovered new exit (range 9) 2539 | -8/Garrison | Lost 3 parts (2p1n) 2725 | -8/Garrison | Installed Relay Interface Framework 2952 | -8/Garrison | Entered Materials 3377 | -8/Materials | Core integrity fell below 50% 3424 | -8/Materials | Core integrity fell below 20% 3443 | -8/Materials | Destroyed by H-61 Shepherd with Heavy Assault Cannon Last Messages --------------- 03431_ R-06 Scavenger collects Flight Unit. 03433_ Knocked back. 03434_ K-01 Serf collects debris. 03434_ Sneak attack on K-01 Serf. 03434_ Destroyed Sml. Matter Pod. 03434_ Destroyed Wheel. 03434_ K-01 Serf system corrupted by crushing effect. 03434_ R-06 Scavenger collects Lgt. Assault Rifle. 03435_ K-01 Serf system terminally corrupted. 03435_ Lgt. Ion Engine fried. 03435_ R-06 Scavenger collects Flight Unit. 03437_ K-01 Serf collects debris. 03438_ Potential Leg blasted off. 03438_ Knocked back. 03438_ K-01 Serf collects debris. 03438_ R-06 Scavenger collects Lgt. Ion Engine. 03440_ Destroyed Targeting Computer. 03440_ H-61 Shepherd system corrupted by crushing effect. 03441_ K-01 Serf collects debris. 03442_ R-06 Scavenger collects Flight Unit. Map ----- +----------------------------------------------------+ | ?????????????????????????????????????????????????? | | ????????????????????????????????????????########## | | ????????????????????????????????????????# | | ????????????????????????????????#########" | | ??????????????????????????####### #T """ | | ?????????????? "????????? # #" """ | | ??????????????? ""??? ???? # # """ | | ???????????????? ?? ???? # # | | ????????????????? ? ???? # # ! | | ??????????????????!! ? ??? + # | | ???????????????????! ??? # ####+##### | | ?????????????#?????? ??? # + | | ?????????????# ???####/########## # | | ????????????## ??# #???# #! | | ??????????### ?# ! #???# #[######## | | ??????????? | # #???##+#####"%##?????? | | ???????????? + [[[ #????# #???## ##?????? | | ??????????????????# [[[ ###### ##### = #?????? | | ??????????????????# T [[a + % %% ####### | | ??????????????????# " ] ######+##### ## | | ??????????????????# r ## #####?????? | | ??????????????????#######/#### * #?????????? | | ????????????????????????#g#??# #?????????? | | ????????????????????????#g##?# [ ! #?????????? | | ????????????????????????#H##?###########?????????? | | ??????????????????????###@###### [ #?????????? | | ????????????????####+## r%%%w #?????????? | | ??????????# %k%wk ??? | | ??????????# % = T ??? | | ??????????# """ """ """ a ???? | | ??????????# ? """ """ """ #####?????? | | ?????????????? """ """gg""" ## ! #?????????? | | ?????????????? #?########?????????? | | ?????????????? % #??????????????????? | | ?????????????? """ """ """ #??????????????????? | | ????????????? ?"" """ """ #??????????????????? | | ????????????????"" """ """ #??????????????????? | | ???????????????? ??? #??????????????????? | | ???????????????? ?? ??? #??????????????????? | | ??????????????? !????"" ??? #??????????????????? | | ?????????????????????"" ???? #??????????????????? | | ??????????????????????" ????? #??????????????????? | | ?????????????????????? ????? #??????????????????? | | ?????????????????????? ?????????????????????????? | | ?????????????????????????????????????????????????? | | ?????????????????????????????????????????????????? | | ?????????????????????????????????????????????????? | | ?????????????????????????????????????????????????? | | ?????????????????????????????????????????????????? | | ?????????????????????????????????????????????????? | +----------------------------------------------------+ Best States ------------- Heat Dissipation 52 Coolant Potential 50 Energy Generation 23 Energy Capacity 445 Matter Stores 300 Matter Capacity 300 Sight Range 20 Terrain Scan Density 10 Armor Coverage 150 Evasion (%) 55 Targeting Accuracy 6 Item Schematics ----------------- None Robot Schematics ------------------ None Fabricated ------------ Nothing Alien Tech Used ----------------- None Achievements -------------- None Challenges ------------ None Game ------ Seed WarpRefineryShredder Manual? 0 Play Time 00:33:06 Cumulative 116.5 hours Start 2023.12.05 @ 20:46:33 End 2023.12.05 @ 21:24:02 Sessions 1 Manual Loads 0 Difficulty Rogue Special Mode None Game No. 95 Rogue 92 Adventurer 3 Explorer 0 Win Type - Total 0 Types 0/0/0/0/0/0/0/0/0 Lore% 62 Gallery% 70 Achievement% 55 Wizard Run 0 Options --------- ASCII 0 Keyboard 0 Movement Mouse Keybinds 0 Fullscreen 2 Font 18/SmallcapsGlow Map View 76x50 Tactical HUD 1 Map Filters NONE Filters NONE Steam 1 RUN: aba872b4-5372-41fc-9d8d-2178681285a5